fUSD/lending_fUSD_20250616
["ID","MTS","AMOUNT","RATE_DAILY","PERIOD"]
[366185643,1750103471015,-3619.26,0.0001654,2]
[366185644,1750103471025,-490.0,0.0001654,2]
[366185645,1750103471035,-490.0,0.0001654,2]
[366185646,1750103471045,-1538.24,0.0001654,2]
[366185647,1750103471057,-490.0,0.0001654,2]
[366185648,1750103471067,-490.0,0.0001654,2]
[366185649,1750103471077,-2458.7,0.0001654,2]
[366185650,1750103471087,-490.0,0.0001654,2]
[366185651,1750103471096,-490.0,0.0001654,2]
[366185652,1750103471107,-9087.47,0.0001654,2]
[366185653,1750103471117,-490.0,0.0001654,2]
[366185654,1750103471127,-490.0,0.0001654,2]
[366185655,1750103471137,-490.0,0.0001654,2]
[366185656,1750103471147,-1264.99,0.0001654,2]
[366185657,1750103471157,-960.03,0.0001654,2]
[366185658,1750103471167,-490.0,0.0001654,2]
[366185659,1750103471177,-502.79,0.0001654,2]
[366185660,1750103471186,-977.94,0.0001654,2]
[366185661,1750103471196,-822.83,0.0001654,2]
[366185662,1750103471207,-1489.23,0.0001654,2]
[366185663,1750103471217,-490.0,0.0001654,2]
[366185664,1750103471227,-490.0,0.0001654,2]
[366185665,1750103471237,-531.85,0.0001654,2]
[366185666,1750103471247,-7763.71,0.0001654,2]
[366185667,1750103471258,-490.0,0.0001654,2]
[366185668,1750103471268,-490.0,0.0001654,2]
[366185669,1750103471279,-490.0,0.0001654,2]
[366185670,1750103471291,-588.43,0.0001654,2]
[366185671,1750103471302,-490.0,0.0001654,2]
[366185672,1750103471449,-1730.49,0.0001654,2]
[366185673,1750103471460,-671.6,0.0001654,2]
[366185674,1750103471469,-2111.48,0.0001654,2]
[366185675,1750103471479,-490.0,0.0001654,2]
[366185676,1750103471489,-3168.54,0.0001654,2]
[366185677,1750103471498,-490.0,0.0001654,2]
[366185678,1750103471508,-5398.99,0.0001654,2]
[366185679,1750103471518,-490.0,0.0001654,2]
[366185680,1750103471528,-1413.82,0.0001654,2]
[366185681,1750103471538,-490.0,0.0001654,2]
[366185682,1750103471547,-490.0,0.0001654,2]
[366185683,1750103471559,-606.59,0.0001654,2]
[366185684,1750103471568,-490.0,0.0001654,2]
[366185685,1750103471578,-490.0,0.0001654,2]
[366185686,1750103471588,-4088.18,0.0001654,2]
[366185687,1750103471597,-587.35,0.0001654,2]
[366185688,1750103471607,-810.08,0.0001654,2]
[366185689,1750103471617,-3530.19,0.0001654,2]
[366185690,1750103471626,-490.0,0.0001654,2]
[366185691,1750103471636,-490.0,0.0001654,2]
[366185692,1750103471646,-1022.18,0.0001654,2]
[366185693,1750103471655,-1000.0,0.0001654,2]
[366185694,1750103471665,-490.0,0.0001654,2]
[366185695,1750103471675,-2733.97,0.0001654,2]
[366185696,1750103471685,-490.0,0.0001654,2]
[366185697,1750103471695,-490.0,0.0001654,2]
[366185698,1750103471705,-750.69,0.00016541,2]
[366185699,1750103471715,-500.0,0.00016548,2]
[366185700,1750103471724,-1836.0,0.00016548,2]
[366185701,1750103471735,-1476.20143227,0.00016555,2]
[366185702,1750103471745,-333.57102936,0.00016582,2]
[366185703,1750103471754,-1476.20143227,0.0001659,2]
[366185704,1750103471763,-200.66,0.00016595,2]
[366185705,1750103471773,-2598.03,0.000166,2]
[366185706,1750103471783,-300.0,0.000166,6]
[366185707,1750103471793,-8082.13,0.00016605,2]
[366185708,1750103471802,-907.72,0.00016605,2]
[366185709,1750103471815,-864.06,0.00016605,2]
[366185710,1750103471825,-490.0,0.00016605,2]
[366185711,1750103471835,-1307.8,0.00016605,2]
[366185712,1750103471847,-702.19,0.00016605,2]
[366185713,1750103471858,-490.0,0.00016605,2]
[366185714,1750103471869,-490.0,0.00016605,2]
[366185715,1750103471880,-7553.88,0.00016605,2]
[366185716,1750103471889,-490.0,0.00016605,2]
[366185717,1750103471900,-1304.04,0.00016605,2]
[366185718,1750103471911,-629.09,0.00016605,2]
[366185719,1750103471922,-764.43,0.00016605,2]
[366185720,1750103471933,-1141.11,0.00016605,2]
[366185721,1750103471943,-742.77,0.00016605,2]
[366185722,1750103471952,-1025.64,0.00016605,2]
[366185723,1750103471962,-626.97,0.00016605,2]
[366185724,1750103471971,-269.92,0.00016605,2]
[366185725,1750103471981,-1000.0,0.00016621,2]
[366185726,1750103471991,-1000.0,0.00016621,2]
[366185727,1750103472003,-5987.13938258,0.00016622,2]
[366185728,1750103472013,-1476.20143227,0.00016624,2]
[366185729,1750103472022,-753.59,0.0001665,2]
[366185730,1750103472032,-657.65,0.0001665,2]
[366185731,1750103472042,-490.0,0.0001665,2]
[366185732,1750103472052,-490.0,0.0001665,2]
[366185733,1750103472063,-490.0,0.0001665,2]
[366185734,1750103472073,-490.0,0.0001665,2]
[366185735,1750103472082,-629.39,0.0001665,2]
[366185736,1750103472093,-967.43,0.0001665,2]
[366185737,1750103472103,-490.0,0.0001665,2]
[366185738,1750103472112,-490.0,0.0001665,2]
[366185739,1750103472122,-2718.45,0.0001665,2]
[366185740,1750103472131,-542.6,0.0001665,2]
[366185741,1750103472142,-490.0,0.0001665,2]
[366185742,1750103472152,-1727.99,0.0001665,2]
[366185743,1750103472162,-2992.28,0.0001665,2]
[366185744,1750103472172,-490.0,0.0001665,2]
[366185745,1750103472182,-597.19,0.0001665,2]
[366185746,1750103472191,-414.09115659,0.0001665,2]
[366185747,1750103472201,-490.0,0.0001665,2]
[366185748,1750103472210,-869.57,0.0001665,2]
[366185749,1750103472220,-490.0,0.0001665,2]
[366185750,1750103472230,-490.0,0.0001665,2]
[366185751,1750103472240,-490.0,0.0001665,2]
[366185752,1750103472250,-618.54,0.0001665,2]
[366185753,1750103472260,-537.68,0.0001665,2]
[366185754,1750103472269,-618.494544,0.0001665,2]
[366185755,1750103472279,-626.11,0.0001665,2]
[366185756,1750103472289,-3802.52,0.0001665,2]
[366185757,1750103472300,-490.0,0.0001665,2]
[366185758,1750103472311,-201.44022834,0.00016651,2]
[366185759,1750103472321,-1476.20143227,0.00016659,2]
[366185760,1750103472331,-199.34781264,0.0001667,2]
[366185761,1750103472341,-326.2385215,0.0001667,2]
[366185762,1750103472351,-2982.39879636,0.0001667,2]
[366185763,1750103472361,-1000.0,0.00016674,2]
[366185764,1750103472372,-1476.20143227,0.00016693,2]
[366185765,1750103472382,-167.57,0.00016698,2]
[366185766,1750103472391,-300.0,0.000167,6]
[366185767,1750103472401,-884.59,0.000167,2]
[366185768,1750103472411,-490.0,0.00016703,2]
[366185769,1750103472421,-490.0,0.00016703,2]
[366185770,1750103472433,-544.77,0.00016703,2]
[366185771,1750103472442,-490.0,0.00016703,2]
[366185772,1750103472451,-269.74,0.00016703,2]
[366185773,1750103472461,-692.5,0.00016703,2]
[366185774,1750103472471,-996.792621,0.00016703,2]
[366185775,1750103472481,-681.16,0.00016703,2]
[366185776,1750103472490,-300.0,0.00016703,2]
[366185777,1750103472500,-490.0,0.00016703,2]
[366185778,1750103472511,-604.44,0.00016703,2]
[366185779,1750103472521,-665.11,0.00016703,2]
[366185780,1750103472530,-609.07,0.00016703,2]
[366185781,1750103472540,-538.8,0.00016703,2]
[366185782,1750103472550,-2113.02,0.00016703,2]
[366185783,1750103472559,-490.0,0.00016703,2]
[366185784,1750103472569,-490.0,0.00016703,2]
[366185785,1750103472578,-155.47812,0.00016703,2]
[366185786,1750103472588,-490.0,0.00016703,2]
[366185787,1750103472597,-2962.76,0.00016703,2]
[366185788,1750103472607,-1249.64,0.00016703,2]
[366185789,1750103472616,-490.0,0.00016703,2]
[366185790,1750103472625,-490.0,0.00016703,2]
[366185791,1750103472635,-703.01,0.00016703,2]
[366185792,1750103472644,-490.0,0.00016703,2]
[366185793,1750103472654,-490.0,0.00016703,2]
[366185794,1750103472664,-1483.19,0.00016703,2]
[366185795,1750103472674,-1413.96,0.00016703,2]
[366185796,1750103472683,-1036.51,0.00016703,2]
[366185797,1750103472695,-490.0,0.00016703,2]
[366185798,1750103472706,-1281.16,0.00016703,2]
[366185799,1750103472715,-3896.01,0.00016703,2]
[366185800,1750103472724,-490.0,0.00016703,2]
[366185801,1750103472734,-490.0,0.00016703,2]
[366185802,1750103472745,-730.97,0.00016703,2]
[366185803,1750103472755,-1203.44,0.00016703,2]
[366185804,1750103472766,-484.61369349,0.00016703,2]
[366185805,1750103472777,-1225.71,0.00016703,2]
[366185806,1750103472789,-641.57,0.00016703,2]
[366185807,1750103472799,-1380.21,0.00016703,2]
[366185808,1750103472811,-490.0,0.00016703,2]
[366185809,1750103472820,-490.0,0.00016703,2]
[366185810,1750103472829,-560.69,0.00016703,2]
[366185811,1750103472839,-1962.5,0.00016703,2]
[366185812,1750103472848,-1756.94,0.00016703,2]
[366185813,1750103472858,-490.0,0.00016703,2]
[366185814,1750103472868,-1274.07,0.00016703,2]
[366185815,1750103472877,-490.0,0.00016703,2]
[366185816,1750103472886,-1023.46,0.00016703,2]
[366185817,1750103472895,-490.0,0.00016704,2]
[366185818,1750103472905,-490.0,0.00016704,2]
[366185819,1750103472914,-490.0,0.00016704,2]
[366185820,1750103472925,-490.0,0.00016704,2]
[366185821,1750103472935,-490.0,0.00016704,2]
[366185822,1750103472946,-490.0,0.00016704,2]
[366185823,1750103472957,-490.0,0.00016704,2]
[366185824,1750103472967,-490.0,0.00016704,2]
[366185825,1750103472978,-490.0,0.00016704,2]
[366185826,1750103472988,-490.0,0.00016704,2]
[366185827,1750103472999,-490.0,0.00016704,2]
[366185828,1750103473011,-490.0,0.00016704,2]
[366185829,1750103473022,-490.0,0.00016704,2]
[366185830,1750103473031,-490.0,0.00016704,2]
[366185831,1750103473041,-490.0,0.00016704,2]
[366185832,1750103473051,-490.0,0.00016704,2]
[366185833,1750103473060,-828.68,0.00016704,2]
[366185834,1750103473069,-490.0,0.00016704,2]
[366185835,1750103473078,-490.0,0.00016704,2]
[366185836,1750103473087,-518.41,0.00016704,2]
[366185837,1750103473096,-879.07,0.00016704,2]
[366185838,1750103473105,-680.92,0.00016704,2]
[366185839,1750103473114,-490.0,0.00016704,2]
[366185840,1750103473123,-490.0,0.00016704,2]
[366185841,1750103473133,-490.0,0.00016704,2]
[366185842,1750103473142,-922.52,0.00016704,2]
[366185843,1750103473151,-490.0,0.00016704,2]
[366185844,1750103473160,-490.0,0.00016704,2]
[366185845,1750103473169,-592.82193138,0.00016704,2]
[366185846,1750103473178,-562.24,0.00016704,2]
[366185847,1750103473187,-679.76,0.00016704,2]
[366185848,1750103473197,-491.26,0.00016704,2]
[366185849,1750103473206,-490.0,0.00016704,2]
[366185850,1750103473215,-741.83,0.00016704,2]
[366185851,1750103473224,-490.0,0.00016704,2]
[366185852,1750103473233,-658.49,0.00016704,2]
[366185853,1750103473243,-490.0,0.00016704,2]
[366185854,1750103473252,-571.16,0.00016704,2]
[366185855,1750103473261,-490.0,0.00016704,2]
[366185856,1750103473271,-490.0,0.00016704,2]
[366185857,1750103473281,-490.0,0.00016704,2]
[366185858,1750103473291,-751.29,0.00016704,2]
[366185859,1750103473300,-490.0,0.00016704,2]
[366185860,1750103473310,-545.39,0.00016704,2]
[366185861,1750103473319,-490.0,0.00016704,2]
[366185862,1750103473330,-784.52,0.00016704,2]
[366185863,1750103473340,-490.0,0.00016704,2]
[366185864,1750103473350,-621.17,0.00016704,2]
[366185865,1750103473359,-490.0,0.00016704,2]
[366185866,1750103473368,-490.0,0.00016704,2]
[366185867,1750103473377,-734.27,0.00016704,2]
[366185868,1750103473387,-490.0,0.00016704,2]
[366185869,1750103473396,-490.0,0.00016704,2]
[366185870,1750103473405,-490.0,0.00016704,2]
[366185871,1750103473414,-716.81,0.00016704,2]
[366185872,1750103473427,-544.22,0.00016704,2]
[366185873,1750103473436,-576.01,0.00016704,2]
[366185874,1750103473446,-540.93,0.00016704,2]
[366185875,1750103473455,-710.17,0.00016704,2]
[366185876,1750103473466,-490.0,0.00016704,2]
[366185877,1750103473476,-710.11,0.00016704,2]
[366185878,1750103473486,-510.27,0.00016704,2]
[366185879,1750103473495,-490.0,0.00016704,2]
[366185880,1750103473508,-707.52,0.00016704,2]
[366185881,1750103473518,-532.63,0.00016704,2]
[366185882,1750103473528,-490.0,0.00016704,2]
[366185883,1750103473537,-490.0,0.00016704,2]
[366185884,1750103473546,-490.0,0.00016704,2]
[366185885,1750103473556,-490.0,0.00016704,2]
[366185886,1750103473567,-490.0,0.00016704,2]
[366185887,1750103473576,-538.36,0.00016704,2]
[366185888,1750103473586,-498.6,0.00016704,2]
[366185889,1750103473595,-490.0,0.00016704,2]
[366185890,1750103473605,-628.89,0.00016704,2]
[366185891,1750103473615,-490.0,0.00016704,2]
[366185892,1750103473625,-1034.97,0.00016704,2]
[366185893,1750103473634,-490.0,0.00016704,2]
[366185894,1750103473644,-490.0,0.00016704,2]
[366185895,1750103473653,-829.2,0.00016704,2]
[366185896,1750103473662,-490.0,0.00016704,2]
[366185897,1750103473672,-490.0,0.00016704,2]
[366185898,1750103473681,-490.0,0.00016704,2]
[366185899,1750103473690,-539.97,0.00016704,2]
[366185900,1750103473699,-574.27,0.00016704,2]
[366185901,1750103473709,-569.57,0.00016704,2]
[366185902,1750103473719,-490.0,0.00016704,2]
[366185903,1750103473728,-553.43,0.00016704,2]
[366185904,1750103473738,-672.01,0.00016704,2]
[366185905,1750103473747,-490.0,0.00016704,2]
[366185906,1750103473757,-490.0,0.00016704,2]
[366185907,1750103473767,-623.25,0.00016704,2]
[366185908,1750103473776,-913.55,0.00016704,2]
[366185909,1750103473786,-703.94,0.00016704,2]
[366185910,1750103473796,-490.0,0.00016704,2]
[366185911,1750103473807,-561.27,0.00016704,2]
[366185912,1750103473816,-686.4,0.00016704,2]
[366185913,1750103473827,-490.0,0.00016704,2]
[366185914,1750103473836,-490.0,0.00016704,2]
[366185915,1750103473846,-490.0,0.00016704,2]
[366185916,1750103473856,-490.0,0.00016704,2]
[366185917,1750103473865,-759.82,0.00016704,2]
[366185918,1750103473875,-490.0,0.00016704,2]
[366185919,1750103473884,-490.0,0.00016704,2]
[366185920,1750103473893,-490.0,0.00016704,2]
[366185921,1750103473902,-707.71,0.00016704,2]
[366185922,1750103473912,-613.07,0.00016704,2]
[366185923,1750103473921,-490.0,0.00016704,2]
[366185924,1750103473930,-2019.56,0.00016704,2]
[366185925,1750103473939,-1159.14,0.00016704,2]
[366185926,1750103473950,-490.0,0.00016704,2]
[366185927,1750103473959,-490.0,0.00016704,2]
[366185928,1750103473969,-894.11,0.00016704,2]
[366185929,1750103473979,-568.44,0.00016704,2]
[366185930,1750103473988,-550.79,0.00016704,2]
[366185931,1750103473998,-1149.38,0.00016704,2]
[366185932,1750103474007,-857.33,0.00016704,2]
[366185933,1750103474016,-673.48,0.00016704,2]
[366185934,1750103474026,-897.06,0.00016704,2]
[366185935,1750103474035,-490.0,0.00016704,2]
[366185936,1750103474045,-685.33,0.00016704,2]
[366185937,1750103474054,-1788.95,0.00016704,2]
[366185938,1750103474064,-790.75,0.00016704,2]
[366185939,1750103474074,-490.0,0.00016704,2]
[366185940,1750103474084,-722.13,0.00016704,2]
[366185941,1750103474095,-490.0,0.00016704,2]
[366185942,1750103474105,-884.72,0.00016704,2]
[366185943,1750103474114,-510.57,0.00016704,2]
[366185944,1750103474124,-912.78,0.00016704,2]
[366185945,1750103474133,-827.71,0.00016704,2]
[366185946,1750103474143,-530.44,0.00016704,2]
[366185947,1750103474153,-759.58,0.00016704,2]
[366185948,1750103474162,-490.0,0.00016704,2]
[366185949,1750103474172,-490.0,0.00016704,2]
[366185950,1750103474181,-490.0,0.00016704,2]
[366185951,1750103474191,-534.28,0.00016704,2]
[366185952,1750103474200,-490.0,0.00016704,2]
[366185953,1750103474209,-982.71,0.00016704,2]
[366185954,1750103474219,-490.0,0.00016704,2]
[366185955,1750103474228,-558.74,0.00016704,2]
[366185956,1750103474238,-490.0,0.00016704,2]
[366185957,1750103474248,-575.86,0.00016704,2]
[366185958,1750103474258,-490.0,0.00016704,2]
[366185959,1750103474268,-490.0,0.00016704,2]
[366185960,1750103474277,-1417.99,0.00016704,2]
[366185961,1750103474287,-490.0,0.00016704,2]
[366185962,1750103474296,-3739.17,0.00016704,2]
[366185963,1750103474306,-490.0,0.00016704,2]
[366185964,1750103474317,-490.0,0.00016704,2]
[366185965,1750103474326,-494.03,0.00016704,2]
[366185966,1750103474336,-642.5,0.00016704,2]
[366185967,1750103474346,-490.0,0.00016704,2]
[366185968,1750103474355,-588.12,0.00016704,2]
[366185969,1750103474366,-3619.26,0.00016704,2]
[366185970,1750103474375,-490.0,0.00016704,2]
[366185971,1750103474384,-490.0,0.00016704,2]
[366185972,1750103474394,-1538.24,0.00016704,2]
[366185973,1750103474404,-490.0,0.00016704,2]
[366185974,1750103474413,-490.0,0.00016704,2]
[366185975,1750103474425,-490.0,0.00016704,2]
[366185976,1750103474435,-2458.7,0.00016704,2]
[366185977,1750103474444,-490.0,0.00016704,2]
[366185978,1750103474454,-9087.47,0.00016704,2]
[366185979,1750103474463,-490.0,0.00016704,2]
[366185980,1750103474474,-490.0,0.00016704,2]
[366185981,1750103474484,-490.0,0.00016704,2]
[366185982,1750103474493,-1264.99,0.00016704,2]
[366185983,1750103474503,-960.03,0.00016704,2]
[366185984,1750103474514,-490.0,0.00016704,2]
[366185985,1750103474523,-502.79,0.00016704,2]
[366185986,1750103474533,-977.94,0.00016704,2]
[366185987,1750103474542,-822.83,0.00016704,2]
[366185988,1750103474552,-1489.23,0.00016704,2]
[366185989,1750103474561,-490.0,0.00016704,2]
[366185990,1750103474571,-490.0,0.00016704,2]
[366185991,1750103474580,-531.85,0.00016704,2]
[366185992,1750103474591,-7763.71,0.00016704,2]
[366185993,1750103474600,-490.0,0.00016704,2]
[366185994,1750103474609,-490.0,0.00016704,2]
[366185995,1750103474619,-490.0,0.00016704,2]
[366185996,1750103474628,-588.43,0.00016704,2]
[366185997,1750103474637,-490.0,0.00016704,2]
[366185998,1750103474647,-1730.49,0.00016704,2]
[366185999,1750103474656,-671.6,0.00016704,2]
[366186000,1750103474665,-2111.48,0.00016704,2]
[366186001,1750103474674,-490.0,0.00016704,2]
[366186002,1750103474683,-3168.54,0.00016704,2]
[366186003,1750103474692,-490.0,0.00016704,2]
[366186004,1750103474702,-5398.99,0.00016704,2]
[366186005,1750103474711,-490.0,0.00016704,2]
[366186006,1750103474720,-1413.82,0.00016704,2]
[366186007,1750103474729,-490.0,0.00016704,2]
[366186008,1750103474738,-490.0,0.00016704,2]
[366186009,1750103474748,-606.59,0.00016704,2]
[366186010,1750103474757,-490.0,0.00016704,2]
[366186011,1750103474766,-490.0,0.00016704,2]
[366186012,1750103474776,-4088.18,0.00016704,2]
[366186013,1750103474786,-587.35,0.00016704,2]
[366186014,1750103474795,-810.08,0.00016704,2]
[366186015,1750103474806,-3530.19,0.00016704,2]
[366186016,1750103474816,-490.0,0.00016704,2]
[366186017,1750103474825,-428.42351608,0.00016704,2]
[366186018,1750103474834,-1022.18,0.00016704,2]
[366186019,1750103474843,-1000.0,0.00016704,2]
[366186020,1750103474853,-490.0,0.00016704,2]
[366186021,1750103474862,-2733.97,0.00016704,2]
[366186022,1750103474871,-490.0,0.00016704,2]
[366186023,1750103474880,-557.1,0.00016704,2]
[366186024,1750103474889,-750.69,0.00016705,2]
[366186025,1750103474899,-1000.0,0.0001671,2]
[366186026,1750103474908,-1000.0,0.0001671,2]
[366186027,1750103474917,-1000.0,0.0001671,2]
[366186028,1750103474926,-1000.0,0.0001671,2]
[366186029,1750103474936,-1000.0,0.0001671,2]
[366186030,1750103474945,-1000.0,0.0001671,2]
[366186031,1750103474954,-1000.0,0.0001671,2]
[366186032,1750103474964,-1000.0,0.0001671,2]
[366186033,1750103474973,-1000.0,0.0001671,2]
[366186034,1750103474982,-1000.0,0.0001671,2]
[366186035,1750103474992,-262.0,0.00016712,2]
[366186036,1750103475001,-500.0,0.00016712,2]
[366186037,1750103475011,-500.0,0.00016712,2]
[366186038,1750103475021,-500.0,0.00016712,2]
[366186039,1750103475030,-365.53719254,0.00016712,2]
[366186040,1750103475039,-500.0,0.00016712,2]
[366186041,1750103475048,-500.0,0.00016712,2]
[366186042,1750103475058,-500.0,0.00016712,2]
[366186043,1750103475069,-500.0,0.00016712,2]
[366186044,1750103475078,-1836.0,0.00016719,2]
[366186045,1750103475087,-980.94485654,0.00016719,2]
[366186046,1750103475096,-239.0,0.00016727,2]
[366186047,1750103475106,-1476.20143227,0.00016728,2]
[366186048,1750103475115,-1324.34049944,0.00016737,2]
[366186049,1750103475124,-333.57102936,0.00016741,2]
[366186050,1750103475134,-150.0,0.00016758,2]
[366186051,1750103475144,-150.0,0.00016761,2]
[366186052,1750103475153,-150.0,0.00016761,2]
[366186053,1750103475163,-1476.20143227,0.00016762,2]
[366186054,1750103475173,-200.0,0.00016765,2]
[366186055,1750103475183,-8082.13,0.00016769,2]
[366186056,1750103475192,-907.72,0.00016769,2]
[366186057,1750103475202,-864.06,0.00016769,2]
[366186058,1750103475212,-490.0,0.00016769,2]
[366186059,1750103475223,-1307.8,0.00016769,2]
[366186060,1750103475232,-702.19,0.00016769,2]
[366186061,1750103475243,-490.0,0.00016769,2]
[366186062,1750103475252,-490.0,0.00016769,2]
[366186063,1750103475262,-7553.88,0.00016769,2]
[366186064,1750103475272,-490.0,0.00016769,2]
[366186065,1750103475282,-1304.04,0.00016769,2]
[366186066,1750103475292,-629.09,0.00016769,2]
[366186067,1750103475302,-764.43,0.00016769,2]
[366186068,1750103475314,-1141.11,0.00016769,2]
[366186069,1750103475323,-742.77,0.00016769,2]
[366186070,1750103475334,-1025.64,0.00016769,2]
[366186071,1750103475345,-626.97,0.00016769,2]
[366186072,1750103475355,-5987.13938258,0.00016769,2]
[366186073,1750103475366,-250.64207354,0.00016772,2]
[366186074,1750103475376,-250.0,0.00016772,2]
[366186075,1750103475386,-201.44022834,0.00016776,2]
[366186076,1750103475397,-2658.797,0.00016777,2]
[366186077,1750103475407,-200.0,0.00016778,2]
[366186078,1750103475417,-200.0,0.0001679,2]
[366186079,1750103475430,-1476.20143227,0.00016797,2]
[366186080,1750103475440,-189.0,0.00016797,2]
[366186081,1750103475451,-150.0,0.00016797,2]
[366186082,1750103475462,-200.0,0.00016797,2]
[366186083,1750103475473,-68035.79329217,0.000168,4]
[366186084,1750103475483,-784.0,0.000168,6]
[366186085,1750103475493,-200.0,0.00016802,2]
[366186086,1750103475510,-200.0,0.00016802,2]
[366186087,1750103475520,-753.59,0.00016814,2]
[366186088,1750103475529,-657.65,0.00016814,2]
[366186089,1750103475540,-490.0,0.00016814,2]
[366186090,1750103475551,-490.0,0.00016814,2]
[366186091,1750103475561,-490.0,0.00016814,2]
[366186092,1750103475571,-490.0,0.00016814,2]
[366186093,1750103475581,-629.39,0.00016814,2]
[366186094,1750103475591,-967.43,0.00016814,2]
[366186095,1750103475601,-490.0,0.00016814,2]
[366186096,1750103475611,-490.0,0.00016814,2]
[366186097,1750103475621,-2718.45,0.00016814,2]
[366186098,1750103475631,-542.6,0.00016814,2]
[366186099,1750103475642,-490.0,0.00016814,2]
[366186100,1750103475652,-1727.99,0.00016814,2]
[366186101,1750103475662,-2992.28,0.00016814,2]
[366186102,1750103475672,-490.0,0.00016814,2]
[366186103,1750103475682,-597.19,0.00016814,2]
[366186104,1750103475692,-490.0,0.00016814,2]
[366186105,1750103475703,-490.0,0.00016814,2]
[366186106,1750103475713,-869.57,0.00016814,2]
[366186107,1750103475723,-490.0,0.00016814,2]
[366186108,1750103475734,-490.0,0.00016814,2]
[366186109,1750103475744,-618.54,0.00016814,2]
[366186110,1750103475754,-537.68,0.00016814,2]
[366186111,1750103475764,-618.494544,0.00016814,2]
[366186112,1750103475774,-626.11,0.00016814,2]
[366186113,1750103475784,-3802.52,0.00016814,2]
[366186114,1750103475794,-490.0,0.00016814,2]
[366186115,1750103475805,-250.64207354,0.0001682,2]
[366186116,1750103475815,-506.84296538,0.00016821,2]
[366186117,1750103475826,-1000.0,0.00016821,2]
[366186118,1750103475836,-1000.0,0.00016821,2]
[366186119,1750103475846,-150.0,0.00016822,2]
[366186120,1750103475856,-200.0,0.00016826,2]
[366186121,1750103475865,-200.0,0.00016827,2]
[366186122,1750103475875,-1476.20143227,0.00016831,2]
[366186123,1750103475885,-200.0,0.00016835,2]
[366186124,1750103475895,-150.0,0.00016837,2]
[366186125,1750103475905,-250.64207354,0.00016841,2]
[366186126,1750103475916,-200.0,0.00016842,2]
[366186127,1750103475925,-150.0,0.00016845,2]
[366186128,1750103475935,-200.0,0.00016854,2]
[366186129,1750103475945,-200.0,0.00016855,2]
[366186130,1750103475956,-250.64207354,0.00016856,2]
[366186131,1750103475966,-2000.0,0.0001686,2]
[366186132,1750103475976,-500.0,0.0001686,2]
[366186133,1750103475987,-1476.20143227,0.00016866,2]
[366186134,1750103475997,-200.0,0.00016866,2]
[366186135,1750103476007,-511.10430697,0.00016867,2]
[366186136,1750103476017,-490.0,0.00016867,2]
[366186137,1750103476027,-158.55925989,0.00016867,2]
[366186138,1750103476037,-692.5,0.00016867,2]
[366186139,1750103476047,-996.792621,0.00016867,2]
[366186140,1750103476057,-681.16,0.00016867,2]
[366186141,1750103476068,-490.0,0.00016867,2]
[366186142,1750103476078,-604.44,0.00016867,2]